Cogmind - Beta 13 @@@ ROGUE MODE // 2024.07.18 @ 21:58:58 Player: OctagonalPrism Result: Destroyed by X-57 Shotgunner with High-powered Shotgun Performance ------------- Evolutions (2) 1000 Regions Visited (5) 1000 Robots Destroyed (35) 175 Value Destroyed (1292) 1292 Prototype IDs (6) 120 Alien Tech Used (0) 0 Bonus (322) 322 TOTAL SCORE: 3909 Bonus ------- High Alert Combat Kills 22 Aligned with FarCom 300 Cogmind --------- Core Integrity 0/550 Matter 110/300 Energy 96/100 System Corruption 2% Temperature Cool (27) Movement Walking (130) Location -8/Materials Parts ------- > --- POWER (1) -------- (None) > --- PROPULSION (3) --- Titanium Leg Titanium Leg > --- UTILITY (4) ------ Large Storage Unit Improved Targeting Computer > --- WEAPON (3) ------- Improved Medium Laser Mini Grenade Launcher > --- INVENTORY (15) --- Improved VTOL Module Superbattery (1500) Improved Terrain Scanner Hardened Light Armor Plating Shock Rifle Improved Assault Rifle Rocket Launcher Peak State ------------ > --- POWER ------------ Light Deuterium Engine > --- PROPULSION ------- Titanium Leg Titanium Leg Improved VTOL Module > --- UTILITY ---------- Large Storage Unit Improved Targeting Computer Transmission Jammer Improved Light Armor Plating > --- WEAPON ----------- Shock Rifle Improved Medium Laser Assault Cannon > --- INVENTORY -------- Light Deuterium Engine Light Treads Light Treads Light Treads Aluminum Leg Superbattery Hardened Light Armor Plating Improved Light Armor Plating Improved Assault Rifle Improved Assault Rifle Mini Grenade Launcher [Rating: 35] Favorites ----------- Power Light Deuterium Engine Engine Light Deuterium Engine Power Core Light Nuclear Core Propulsion Light Treads Treads Light Treads Leg Titanium Leg Flight Unit Improved VTOL Module Utility Improved Light Armor Plating Device Transmission Jammer Storage Large Storage Unit Processor Improved Targeting Computer Protection Improved Light Armor Plating Weapon Light Assault Rifle Energy Gun EM Pulse Gun Ballistic Gun Light Assault Rifle Ballistic Cannon Assault Cannon Launcher Mini Grenade Launcher Build | -11 -10 -10 -10 -9 -8 ------- Run | Yrd Mat Min Exi Min Mat Slots Evolved 4 | . . . . . 4 Power . | . . . . . . Propulsion 1 | . . . . . 1 Utility 2 | . . . . . 2 Weapon 1 | . . . . . 1 Parts Attached 64 | 6 2 . 2 1 53 Power 7 | 1 1 . . . 5 Engine 5 | 1 . . . . 4 Core 2 | . 1 . . . 1 Reactor . | . . . . . . Propulsion 19 | 2 . . . . 17 Treads 13 | 2 . . . . 11 Leg 5 | . . . . . 5 Wheel . | . . . . . . Hover . | . . . . . . Flight 1 | . . . . . 1 Utility 17 | 1 1 . 2 1 12 Device 3 | . 1 . . . 2 Storage 4 | 1 . . 1 1 1 Processor 2 | . . . 1 . 1 Hackware . | . . . . . . Protection 8 | . . . . . 8 Artifact . | . . . . . . Weapon 21 | 2 . . . . 19 Energy Gun 8 | 1 . . . . 7 Energy Cannon . | . . . . . . Ballistic Gun 7 | 1 . . . . 6 Ballistic Cannon 1 | . . . . . 1 Launcher 5 | . . . . . 5 Special Weapon . | . . . . . . Impact Weapon . | . . . . . . Slashing Weapon . | . . . . . . Piercing Weapon . | . . . . . . Special Melee Weapon . | . . . . . . Unidentified Prototypes 4 | . . . 1 . 3 Corrupted Parts 1 | . . . . . 1 System Corruption 2 | . . . . . 2 Parts Lost 22 | . . . . . 22 Power 4 | . . . . . 4 Propulsion 7 | . . . . . 7 Utility 5 | . . . . . 5 Weapon 6 | . . . . . 6 Highest Loss Streak 10 | . . . . . 10 To Critical Strikes . | . . . . . . Average Slot Usage (%) 92 | . 94 100 96 100 89 Engine 5 | . 10 . . . 7 Core 4 | . 3 14 14 14 . Treads 21 | . 28 28 28 28 17 Leg 2 | . . . . . 4 Device 3 | . 8 14 2 . 4 Storage 11 | . 14 14 17 14 9 Processor 8 | . . . 4 14 9 Protection 6 | . . . . . 10 Energy Gun 12 | . 14 14 14 14 11 Ballistic Gun 10 | . 14 14 14 14 9 Ballistic Cannon 2 | . . . . . 4 Naked Turns . | . . . . . . Heaviest Build 42 | 11 14 14 17 18 42 Greatest Support 60 | 40 40 40 40 40 60 Greatest Overweight (x) 2 | . . . . . 2 Average Overweight (x) . | . . . . . . Largest Inventory Capacity 15 | 8 8 8 8 10 15 Average Capacity 11 | 6 8 8 8 9 13 Most Carried 12 | 1 5 5 5 5 12 Average Carried 5 | . 2 5 4 4 7 Final Capacity 15 | 8 8 8 8 10 15 Final Carried 7 | 1 5 5 4 5 7 Class Distribution -------------------- 43% | Mutant 40% | Skirmisher 15% | Tank Dominant Class ---------------- Mutant | -10/Materials Mutant | -10/Mines Mutant | -10/Exiles Mutant | -9/Mines Skirmisher | -8/Materials Resources | -11 -10 -10 -10 -9 -8 ----------- Run | Yrd Mat Min Exi Min Mat Matter Collected 1184 | 213 83 . . 30 858 Remotely . | . . . . . . Salvage Created 1288 | . 205 . . . 1083 Parts 74 | . 10 . . . 64 Haulers Intercepted 1 | . . . . . 1 Recyclers Shooed . | . . . . . . Parts Field Recycled . | . . . . . . Retrieved Matter . | . . . . . . Parts Self-Destructed . | . . . . . . Prevented . | . . . . . . Kills | -11 -10 -10 -10 -9 -8 ------- Run | Yrd Mat Min Exi Min Mat Combat Hostiles Destroyed 27 | . 2 . . . 25 Guns 18 | . 2 . . . 16 Cannons 6 | . . . . . 6 AOE 3 | . . . . . 3 Classes Destroyed 9 | . 3 . . . 6 Hauler 1 | . . . . . 1 Recycler 1 | . 1 . . . . Operator 1 | . . . . . 1 Watcher 5 | . 1 . . . 4 Swarmer 3 | . . . . . 3 Grunt 16 | . 2 . . . 14 Brawler 1 | . . . . . 1 Duelist 1 | . . . . . 1 Sentry 6 | . . . . . 6 Best Kill Streak 6 | . 2 . . . 6 Combat Bots Only 6 | . 2 . . . 6 Max Kills in Single Turn 2 | . 1 . . . 2 Gunslinging 1 | . . . . . 1 Exploded 2 | . . . . . 2 Melee . | . . . . . . Uniques/NPCs Destroyed . | . . . . . . Combat | -11 -10 -10 -10 -9 -8 -------- Run | Yrd Mat Min Exi Min Mat Hostile Shots Fired 337 | . 19 . . . 318 Missed 77 | . 4 . . . 73 Damage Taken 3646 | . 177 . . . 3469 Core 620 | . 58 . . . 562 Absorbed by Shields . | . . . . . . Regen/Repaired (Parts) 31 | . . . . . 31 Core Remaining (%) 88 | 100 . . . 76 . Volleys Fired 102 | . 16 . 8 . 78 Largest 3 | . 2 . 1 . 3 Hottest 150 | . 60 . 40 . 150 Shots Fired 231 | . 32 . 8 . 191 Gun 178 | . 32 . 8 . 138 Cannon 45 | . . . . . 45 Launcher 8 | . . . . . 8 Special . | . . . . . . Kinetic 128 | . 16 . . . 112 Thermal 25 | . . . . . 25 Explosive 8 | . . . . . 8 Electromagnetic 70 | . 16 . 8 . 46 Robot Hit Streak 14 | . 3 . . . 14 Robot Miss Streak 6 | . 2 . . . 6 Penetration Max . | . . . . . . Secondary Targets 4 | . . . . . 4 Max Gunslinging Chain 1 | . . . . . 1 Shots Hit Robots 147 | . 18 . . . 129 Core Hits 76 | . 11 . . . 65 Critical Kills 1 | . . . . . 1 Critical Parts Destroyed . | . . . . . . Critical Strikes 2 | . . . . . 2 Destroy 1 | . . . . . 1 Blast 1 | . . . . . 1 Melee Attacks . | . . . . . . Impact . | . . . . . . Slashing . | . . . . . . Piercing . | . . . . . . Sneak Attacks . | . . . . . . Combat Hostiles . | . . . . . . Follow-up Attacks . | . . . . . . Damage Inflicted 3337 | . 310 . . . 3027 Guns 1762 | . 213 . . . 1549 Cannons 784 | . . . . . 784 Explosions 788 | . 97 . . . 691 Melee . | . . . . . . Ramming 3 | . . . . . 3 Kinetic 1647 | . 81 . . . 1566 Thermal 470 | . 97 . . . 373 Explosive 565 | . . . . . 565 Electromagnetic 652 | . 132 . . . 520 Impact . | . . . . . . Slashing . | . . . . . . Piercing . | . . . . . . Highest Corruption 2 | . . . . . 2 Average Corruption 2 | . . . . . 2 Corruption Purged . | . . . . . . Corruption Blocked . | . . . . . . Effects 21 | . . . . . 21 Message Errors 5 | . . . . . 5 Matter Fused 3 | . . . . . 3 Heat Flow Errors 3 | . . . . . 3 Energy Discharges 3 | . . . . . 3 Data Loss (minor) 4 | . . . . . 4 Data Loss (major) 1 | . . . . . 1 Weapon Failures 2 | . . . . . 2 Overload Shots . | . . . . . . Overflow Damage 51 | . . . . . 51 Projectiles 51 | . . . . . 51 Explosions . | . . . . . . Melee . | . . . . . . Knockbacks 13 | . . . . . 13 Impact . | . . . . . . Kinetic 13 | . . . . . 13 Secondary . | . . . . . . Self-Inflicted Damage 71 | . . . . . 71 Shots 2 | . . . . . 2 Rammed 1 | . . . . . 1 Targets Rammed 2 | . . . . . 2 Kicked 1 | . . . . . 1 Crushed . | . . . . . . Highest Temperature 497 | . 153 . 32 . 497 Average Temperature 118 | . 61 . 16 . 132 Received Heat Transfer 1038 | . 93 . . . 945 Effects 11 | . . . . . 11 Shutdowns 3 | . . . . . 3 Energy Bleed 2 | . . . . . 2 Matter Decay 3 | . . . . . 3 Short Circuit 1 | . . . . . 1 Damage (minor) 2 | . . . . . 2 Siege Activations . | . . . . . . Robots Corrupted . | . . . . . . Combat Hostiles . | . . . . . . Parts Fried 2 | . . . . . 2 Impact Corruptions . | . . . . . . Robots Melted . | . . . . . . Combat Hostiles . | . . . . . . Parts Melted 1 | . . . . . 1 Heat Transferred 892 | . 200 . . . 692 Parts Sabotaged . | . . . . . . Parts Stolen . | . . . . . . Parts Stripped . | . . . . . . Power Chain Reactions 3 | . 2 . . . 1 Alert | -11 -10 -10 -10 -9 -8 ------- Run | Yrd Mat Min Exi Min Mat Peak Influence 489 | . 62 24 . . 489 Initial 24 | . . 24 . . . Average 166 | . 27 24 . . 224 Maximum Alert Level 2 | . . . . . 2 Low Security (%) 60 | 100 100 100 . 100 46 Level 1 20 | . . . . . 28 Level 2 18 | . . . . . 25 Level 3 . | . . . . . . Level 4 . | . . . . . . Level 5 . | . . . . . . High Security . | . . . . . . Max Security . | . . . . . . Squads Dispatched 5 | . . . . . 5 Investigation 1 | . . . . . 1 Extermination . | . . . . . . Reinforcement 4 | . . . . . 4 Assault . | . . . . . . Garrison . | . . . . . . Intercept . | . . . . . . Searches Triggered . | . . . . . . Construction Impeded . | . . . . . . Haulers Reinforced . | . . . . . . Active Scanning Responses . | . . . . . . Cargo Convoy Interrupts . | . . . . . . Stealth | -11 -10 -10 -10 -9 -8 --------- Run | Yrd Mat Min Exi Min Mat Distress Signals 3 | . . . . . 3 Communications Jammed 5 | . . . . . 5 Distress Signals 1 | . . . . . 1 Times Spotted 59 | . 8 . . . 51 Peak Tracking Total 9 | . 6 . . . 9 Tactical Retreats 5 | . . . . . 5 Traps | -11 -10 -10 -10 -9 -8 ------- Run | Yrd Mat Min Exi Min Mat Traps Triggered 4 | . . . . . 4 Indirectly . | . . . . . . Trap Hack Attempts . | . . . . . . Triggered . | . . . . . . Disarmed . | . . . . . . Reprogrammed . | . . . . . . Reused . | . . . . . . Traps Extracted . | . . . . . . Installed . | . . . . . . Triggered . | . . . . . . Machines | -11 -10 -10 -10 -9 -8 ---------- Run | Yrd Mat Min Exi Min Mat Machines Disabled 3 | . . . . . 3 Max in Single Turn 2 | . . . . . 2 Machines Repaired . | . . . . . . Machines Dismantled . | . . . . . . Machines Sabotaged . | . . . . . . Overloaded Fab Kills . | . . . . . . Hacking | -11 -10 -10 -10 -9 -8 --------- Run | Yrd Mat Min Exi Min Mat Machines Accessed 8 | . 1 . . . 7 Terminals 7 | . 1 . . . 6 Fabricators . | . . . . . . Repair Stations 1 | . . . . . 1 Recycling Units . | . . . . . . Scanalyzers . | . . . . . . Garrison Access . | . . . . . . Total Hacks 25 | . 2 . . . 23 Successful 16 | . 1 . . . 15 Failed 9 | . 1 . . . 8 Catastrophic . | . . . . . . Database Lockouts . | . . . . . . Manual 10 | . 2 . 1 . 7 Terminals 23 | . 2 . . . 21 Fabricators . | . . . . . . Repair Stations 2 | . . . . . 2 Recycling Units . | . . . . . . Scanalyzers . | . . . . . . Garrison Access . | . . . . . . Terminal Hacks 9 | . . . . . 9 Record 1 | . . . . . 1 Prototype ID Bank 1 | . . . . . 1 Terminal Index 1 | . . . . . 1 Alert Level 1 | . . . . . 1 Locate Traps 3 | . . . . . 3 Transport Status 1 | . . . . . 1 Zone Layout 1 | . . . . . 1 Fabricator Hacks . | . . . . . . Repair Station Hacks 2 | . . . . . 2 Scan Component 1 | . . . . . 1 Repair 1 | . . . . . 1 Recycling Unit Hacks . | . . . . . . Scanalyzer . | . . . . . . Garrison Access Hacks . | . . . . . . Unauthorized Hacks 5 | . 1 . . . 4 Terminals 5 | . 1 . . . 4 Track 1 | . . . . . 1 Assimilate 2 | . . . . . 2 Botnet 2 | . 1 . . . 1 Fabricators . | . . . . . . Repair Stations . | . . . . . . Recycling Units . | . . . . . . Scanalyzers . | . . . . . . Garrison Access . | . . . . . . Data Cores Recovered . | . . . . . . Used . | . . . . . . Hacking Detections 4 | . . . . . 4 Full Trace Events 1 | . . . . . 1 Feedback Events . | . . . . . . Feedback Blocked . | . . . . . . Robot Schematics Acquired . | . . . . . . Robots Built . | . . . . . . Authchips . | . . . . . . Time . | . . . . . . Total Robot Build Rating . | . . . . . . Part Schematics Acquired . | . . . . . . Parts Built . | . . . . . . Authchips . | . . . . . . Time . | . . . . . . Total Part Build Rating . | . . . . . . Parts Repaired 1 | . . . . . 1 Time 38 | . . . . . 38 Parts Recycled . | . . . . . . Recycled Matter . | . . . . . . Retrieved Matter . | . . . . . . Retrieved Components . | . . . . . . Parts Scanalyzed . | . . . . . . Part Schematics Acquired . | . . . . . . Parts Damaged . | . . . . . . Bothacking | -11 -10 -10 -10 -9 -8 ------------ Run | Yrd Mat Min Exi Min Mat Used RIF Installer . | . . . . . . Robots Hacked . | . . . . . . Non-combat . | . . . . . . Combat . | . . . . . . Robot Hacks Applied . | . . . . . . Relay Couplers Released . | . . . . . . Fabnet Peak Effective % . | . . . . . . Robots Rewired . | . . . . . . Allies Hacked . | . . . . . . Hacks Repelled . | . . . . . . Allies | -11 -10 -10 -10 -9 -8 -------- Run | Yrd Mat Min Exi Min Mat Total Allies . | . . . . . . Largest Group . | . . . . . . Highest-Rated Group . | . . . . . . Highest-Rated Ally . | . . . . . . Total Orders . | . . . . . . Ally Attacks . | . . . . . . Total Damage . | . . . . . . Kills . | . . . . . . Allies Corrupted . | . . . . . . Allies Melted . | . . . . . . Intel | -11 -10 -10 -10 -9 -8 ------- Run | Yrd Mat Min Exi Min Mat Robot Analysis Total . | . . . . . . Derelict Logs Recovered . | . . . . . . Drone Launches . | . . . . . . Drone Recoveries . | . . . . . . Exploration | -11 -10 -10 -10 -9 -8 ------------- Run | Yrd Mat Min Exi Min Mat Turns Passed 3385 | 59 221 56 461 445 2143 Spaces Moved 1568 | 33 100 36 218 275 906 Core 2 | 2 . . . . . Treads 1361 | 31 100 36 218 275 701 Legs 205 | . . . . . 205 Wheels . | . . . . . . Hover . | . . . . . . Flight . | . . . . . . Fastest Speed 50 | 50 160 160 160 160 126 Average Speed 163 | 153 160 160 160 160 167 Slowest Speed 270 | 160 160 160 160 160 270 Overloaded Moves . | . . . . . . Propulsion Burnouts . | . . . . . . Robots Hopped . | . . . . . . Cave-ins Triggered . | . . . . . . Exploration Rate (%) 32 | 4 26 12 43 44 64 Regions Visited 5 Branch Regions 3 Pre-discovered Areas . | . . . . . . Known Exits Taken . | . . . . . . Unknown Exits Taken 5 | 1 1 1 1 1 . Scrap Searched 3 | . . . . 3 . Spaces Dug 10 | . . . . . 10 Terrain Destroyed 66 | . . . . . 66 Melee . | . . . . . . Projectile 8 | . . . . . 8 AOE 58 | . . . . . 58 Terrain Rammed . | . . . . . . Walls Destroyed . | . . . . . . Machines Disabled . | . . . . . . Actions | -11 -10 -10 -10 -9 -8 --------- Run | Yrd Mat Min Exi Min Mat Total 2174 | 39 131 35 324 280 1365 Wait 395 | . 10 . 93 2 290 Move 1563 | 32 99 35 217 274 906 Hop . | . . . . . . Pick Up 31 | 1 4 . 1 2 23 Fast Attach 27 | 6 1 . . . 20 Attach 17 | . . . 2 . 15 Detach 3 | . . . 1 . 2 Swap 20 | . 1 . . 1 18 Drop 14 | . . . 2 1 11 Fire 102 | . 16 . 8 . 78 Melee . | . . . . . . Ram . | . . . . . . Kick 1 | . . . . . 1 Crush 1 | . . . . . 1 Escape Stasis . | . . . . . . Rewire . | . . . . . . Trap . | . . . . . . Miscellaneous . | . . . . . . Route ------- -11/Scrapyard -10/Materials -10/Mines -10/Exiles -9/Mines -8/Materials History --------- Turn | Location | Event 7 | -11/Scrapyard | Discovered new exit (range 16) 60 | -11/Scrapyard | Entered Materials 132 | -10/Materials | Discovered new exit (range 13) 281 | -10/Materials | Entered Mines 317 | -10/Mines | Build established: Mutant 329 | -10/Mines | Deemed a non-threat by the Exiles lab entrance 331 | -10/Mines | Discovered new exit (range 5) 337 | -10/Mines | Entered Exiles 376 | -10/Exiles | Met 8R-AWN 419 | -10/Exiles | Met EX-HEX 468 | -10/Exiles | Met EX-BIN 487 | -10/Exiles | Aligned with FarCom system 489 | -10/Exiles | Given EX-Vault access code 527 | -10/Exiles | Opened EX-Vault 537 | -10/Exiles | Found Prototype Storage 538 | -10/Exiles | Identified Superbattery 670 | -10/Exiles | Warned to stay clear of 0b10 Research branches 774 | -10/Exiles | Discovered new exit (range 17) 798 | -10/Exiles | Left Exiles lab with Superbattery 798 | -10/Exiles | Entered Mines 1077 | -9/Mines | Discovered new exit (range 13) 1236 | -9/Mines | YI-UF0 nonchalantly dropped a Grenade Launcher on the ground 1243 | -9/Mines | Entered Materials 1243 | -8/Materials | Evolved 4 slots: Propulsion x1, Utility x2, Weapon x1 1624 | -8/Materials | Repaired Lgt. Deuterium Engine 2161 | -8/Materials | Build established: Tank 2294 | -8/Materials | Lost 8 parts (2p1n2u3w) 2642 | -8/Materials | Build established: Skirmisher 2666 | -8/Materials | Core integrity fell below 50% 3373 | -8/Materials | Core integrity fell below 20% 3386 | -8/Materials | Destroyed by X-57 Shotgunner with High-powered Shotgun Last Messages --------------- Power failure, Lgt. Deuterium Engine shutdown. G-47 Trooper knocked back. Lgt. Deuterium Engine destroyed. G-47 Trooper knocked back. Overheating: Matter decay (-1). Lgt. Treads destroyed. Slammed into X-57 Shotgunner. U-05 Engineer builds a Wall. Acquired 3 matter. Power failure, Lgt. Deuterium Engine shutdown. Lgt. Treads destroyed. Assault Cannon destroyed. Acquired 3 matter. Imp. Light Armor Plating destroyed. Transmission Jammer destroyed. Imp. Assault Rifle destroyed. Acquired 4 matter. Acquired 103 matter. Lgt. Deuterium Engine destroyed. U-05 Engineer lays Concrete. Map ----- +----------------------------------------------------+ | ## "" # ????????????????????????? | | #### ""S # "????????????????????????? | | #??# k"" # ????????????????????????? | | #??# # "????????????????????????? | | #??# # ????????????????????????? | | #######+####+#+#?####??????????????????? | | # #??????????????????? | | % # !#??????????????????? | | + #??????????????????? | | ######### # #??????????????????? | | ### # ## # ###?####???????????? | | ### # ##%#? # #???????????? | | ## # """ ## #?! # =#???????????? | | ## + """ ## #?? # #???????????? | | ## # """ ## "#?### """ #???????????? | | ## # ## "##### """ #???????????? | | ## ####/### ##%""" #???????????? | | ## #??# #?# ##%""" +??Y????????? | | ## #??# #?# * // ## #???????????? | | ## #??# #?#[%[ / ## " #???????????? | | ### #?## ## = # #???????????? | | ### %# # "gx#???????????? | | #####+### x #???????????? | | ### % u g #???????????? | | #######?## # ###???????????? | | ?????????# % # @ #????????????? | | ???????##! # !#????????????? | | ????? # # * #????????????? | | ?#??? + % + !!*#????????????? | | #? # ""T"" # !**#????????????? | | # # """"" # ! !**#????????????? | | ####+# % ###########??????????? | | +?? %! #?### #??????????? | | ??##### ##### #?# ##??????????? | | ???????###???# #?# #??????????? | | ###????????????# #?# ##??????????? | | #???????????? ?# ##???????????? | | #??????????? ?# #????????????? | | #??????????? ??# ] #????????????? | | #?????????? H?? / "############## | | !#????????? ? # T"# # | | ##??????????# # ""# # | | #???????????# ?#! ""# # | | #????????????# ?# # # | | #????????????# ##/##### """ ? | | #????????????# ^ # """""?? | | #????????????+ ^ # """"??? | | #?######?????# ^ + """"??? | | #? #?????# # """??? | | # """ #?????# # ? | +----------------------------------------------------+ Best States ------------- Heat Dissipation 31 Energy Generation 14 Energy Capacity 1660 Matter Stores 300 Matter Capacity 300 Sight Range 18 Robot Scan Range 14 Terrain Scan Density 10 Jamming Range 12 Armor Coverage 300 Evasion (%) 55 Targeting Accuracy 6 Recoil Reduction 3 Item Schematics ----------------- None Robot Schematics ------------------ None Fabricated ------------ Nothing Alien Tech Used ----------------- None Achievements -------------- None Challenges ------------ None Game ------ Seed XenonReflectiveRailgun Manual? 0 Play Time 00:59:00 Cumulative 8.5 hours Start 2024.07.18 @ 20:57:49 End 2024.07.18 @ 21:58:58 Sessions 1 Manual Loads 0 Difficulty Rogue Special Mode None Game No. 8 Rogue 8 Adventurer 0 Explorer 0 Win Type - Total 0 Types 0/0/0/0/0/0/0/0/0 Lore% 6 Gallery% 10 Achievement% 10 Wizard Run 0 Options --------- Layout 1 ASCII 0 Keyboard 0 Movement Arrows Keybinds 0 Fullscreen 1 Font 16/Terminus Map View 55x38 Zoom Use 1% Tactical HUD 0 Map Filters NONE Filters NONE Steam 1 RUN: 41849e0b-ab7c-4d0c-bb73-b24513529b5b